fUST/lending_fUST_20250920
["ID","MTS","AMOUNT","RATE_DAILY","PERIOD"]
[386493324,1758319867505,-728.97,0.00027427,15]
[386493325,1758319867515,-500.0,0.00027432,2]
[386493326,1758319867524,-500.0,0.00027432,2]
[386493327,1758319867534,-860.0,0.00027451,2]
[386493328,1758319867543,-500.0,0.00027473,5]
[386493329,1758319867553,-318.61173722,0.00027473,5]
[386493330,1758319867562,-500.0,0.00027473,5]
[386493331,1758319867571,-500.0,0.00027473,5]
[386493332,1758319867580,-151.0,0.000275,120]
[386493333,1758319867589,-45338.09010475,0.000275,2]
[386493334,1758319867597,-800.0,0.00027514,2]
[386493335,1758319867606,-728.97,0.00027527,15]
[386493336,1758319867616,-150.0,0.00027551,2]
[386493337,1758319867625,-500.0,0.00027552,2]
[386493338,1758319867634,-800.0,0.00027575,2]
[386493339,1758319867643,-995.27524671,0.00027589,2]
[386493340,1758319867653,-168.0,0.00027606,2]
[386493341,1758319867663,-168.0,0.00027613,2]
[386493342,1758319867672,-500.0,0.00027619,2]
[386493343,1758319867682,-500.0,0.00027625,2]
[386493344,1758319867691,-500.0,0.00027627,2]
[386493345,1758319867700,-728.97,0.00027627,15]
[386493346,1758319867709,-500.0,0.00027653,2]
[386493347,1758319867718,-168.0,0.00027691,2]
[386493348,1758319867727,-500.0,0.00027698,2]
[386493349,1758319867736,-500.0,0.00027706,2]
[386493350,1758319867746,-500.0,0.00027706,2]
[386493351,1758319867755,-728.97,0.00027727,15]
[386493352,1758319867764,-800.0,0.00027753,2]
[386493353,1758319867773,-800.0,0.00027793,2]
[386493354,1758319867782,-168.0,0.00027813,2]
[386493355,1758319867791,-800.0,0.00027814,2]
[386493356,1758319867800,-728.97,0.00027827,15]
[386493357,1758319867809,-3542.51,0.000279,7]
[386493358,1758319867818,-2000.0,0.000279,2]
[386493359,1758319867828,-166.40936905,0.000279,2]
[386493360,1758319867837,-166.40936905,0.000279,2]
[386493361,1758319867847,-166.40936905,0.000279,2]
[386493362,1758319867856,-166.40936905,0.000279,2]
[386493363,1758319867866,-166.40936905,0.000279,2]
[386493364,1758319867875,-800.0,0.00027912,2]
[386493365,1758319867884,-728.97,0.00027927,15]
[386493366,1758319867893,-500.0,0.00027929,2]
[386493367,1758319867902,-500.0,0.00027938,2]
[386493368,1758319867912,-250.0,0.00027945,5]
[386493369,1758319867921,-293.85068442,0.00027958,2]
[386493370,1758319867931,-168.0,0.00027969,2]
[386493371,1758319867940,-500.0,0.0002798,2]
[386493372,1758319867950,-500.0,0.0002798,2]
[386493373,1758319867959,-960.0,0.00027999,2]
[386493374,1758319867970,-2000.0,0.00028,2]
[386493375,1758319867979,-2000.0,0.00028,2]
[386493376,1758319867988,-233.43972884,0.00028,3]
[386493377,1758319867997,-160.0,0.00028,3]
[386493378,1758319868007,-848.13460282,0.00028,3]
[386493379,1758319868016,-1299.999999,0.00028,2]
[386493380,1758319868024,-2141.76530093,0.00028,120]
[386493381,1758319868035,-159.14781448,0.00028,2]
[386493382,1758319868044,-160.0,0.00028,10]
[386493383,1758319868054,-1055.04,0.00028,2]
[386493384,1758319868063,-168.0,0.00028017,2]
[386493385,1758319868073,-728.97,0.00028027,15]
[386493386,1758319868083,-168.0,0.00028031,2]
[386493387,1758319868093,-499.3,0.00028061,2]
[386493388,1758319868103,-800.0,0.00028078,2]
[386493389,1758319868112,-153.0,0.00028081,30]
[386493390,1758319868122,-800.0,0.00028105,2]
[386493391,1758319868131,-728.97,0.00028127,15]
[386493392,1758319868140,-1055.04,0.0002814,2]
[386493393,1758319868150,-600.0,0.0002817,2]
[386493394,1758319868159,-500.0,0.00028178,2]
[386493395,1758319868169,-500.0,0.00028183,2]
[386493396,1758319868179,-250.0,0.00028208,2]
[386493397,1758319868189,-250.0,0.00028225,2]
[386493398,1758319868198,-728.97,0.00028227,15]
[386493399,1758319868207,-500.0,0.00028254,2]
[386493400,1758319868217,-500.0,0.00028254,2]
[386493401,1758319868227,-500.0,0.00028267,2]
[386493402,1758319868237,-500.0,0.0002827,2]
[386493403,1758319868246,-1055.04,0.0002828,2]
[386493404,1758319868255,-728.97,0.00028327,15]
[386493405,1758319868265,-500.0,0.00028331,2]
[386493406,1758319868274,-500.0,0.00028349,2]
[386493407,1758319868288,-200.0,0.00028374,120]
[386493408,1758319868298,-166.40936905,0.00028374,2]
[386493409,1758319868307,-1055.04,0.0002842,2]
[386493410,1758319868317,-500.0,0.00028427,2]
[386493411,1758319868326,-728.97,0.00028427,15]
[386493412,1758319868335,-779.2257028,0.00028438,30]
[386493413,1758319868344,-500.0,0.00028445,2]
[386493414,1758319868354,-898.93599219,0.00028464,2]
[386493415,1758319868363,-800.0,0.00028466,2]
[386493416,1758319868374,-500.0,0.00028474,2]
[386493417,1758319868383,-800.0,0.00028475,2]
[386493418,1758319868393,-200.0,0.00028485,120]
[386493419,1758319868402,-350.0,0.00028493,5]
[386493420,1758319868411,-500.0,0.00028499,2]
[386493421,1758319868420,-500.0,0.00028522,7]
[386493422,1758319868430,-728.97,0.00028527,15]
[386493423,1758319868439,-547.72309064,0.00028528,2]
[386493424,1758319868449,-500.0,0.00028528,2]
[386493425,1758319868459,-500.0,0.00028545,2]
[386493426,1758319868468,-1060.0,0.00028547,2]
[386493427,1758319868477,-1055.04,0.0002856,2]
[386493428,1758319868487,-500.0,0.00028579,2]
[386493429,1758319868497,-728.97,0.00028627,15]
[386493430,1758319868568,-500.0,0.00028632,2]
[386493431,1758319868578,-800.0,0.00028645,2]
[386493432,1758319868587,-500.0,0.00028682,2]
[386493433,1758319868596,-1055.04,0.000287,2]
[386493434,1758319868605,-168.0,0.00028701,2]
[386493435,1758319868615,-728.97,0.00028727,15]
[386493436,1758319868624,-168.0,0.00028732,2]
[386493437,1758319868633,-500.0,0.00028798,2]
[386493438,1758319868643,-161.0,0.00028802,2]
[386493439,1758319868653,-500.0,0.0002881,2]
[386493440,1758319868662,-5000.0,0.00028816,30]
[386493441,1758319868672,-5000.0,0.00028816,30]
[386493442,1758319868681,-5000.0,0.00028816,30]
[386493443,1758319868691,-5000.0,0.00028816,30]
[386493444,1758319868701,-5000.0,0.00028816,30]
[386493445,1758319868710,-4614.02,0.00028816,30]
[386493446,1758319868719,-728.97,0.00028827,15]
[386493447,1758319868729,-1055.04,0.0002884,2]
[386493448,1758319868738,-200.0,0.00028852,120]
[386493449,1758319868747,-500.0,0.00028867,2]
[386493450,1758319868756,-500.0,0.00028873,2]
[386493451,1758319868765,-1077.2,0.000289,2]
[386493452,1758319868775,-168.0,0.000289,2]
[386493453,1758319868784,-728.97,0.00028927,15]
[386493454,1758319868793,-500.0,0.00028941,2]
[386493455,1758319868803,-800.0,0.00028958,2]
[386493456,1758319868812,-500.0,0.00028961,2]
[386493457,1758319868822,-1055.04,0.0002898,2]
[386493458,1758319868832,-800.0,0.00028991,2]
[386493459,1758319868841,-2654.8,0.00029,2]
[386493460,1758319868851,-2000.0,0.00029,2]
[386493461,1758319868860,-848.13460282,0.00029,10]
[386493462,1758319868869,-233.43972884,0.00029,10]
[386493463,1758319868880,-8891.5498742,0.00029,60]
[386493464,1758319868889,-160.0,0.00029,10]
[386493465,1758319868902,-3035.55346182,0.00029,60]
[386493466,1758319868912,-417.15472785,0.00029,30]
[386493467,1758319868922,-531.75067929,0.00029,30]
[386493468,1758319868931,-233.43972884,0.00029,30]
[386493469,1758319868940,-160.0,0.00029,30]
[386493470,1758319868949,-848.13460282,0.00029,30]
[386493471,1758319868958,-217.99592756,0.00029,30]
[386493472,1758319868967,-168.0,0.00029026,2]
[386493473,1758319868976,-728.97,0.00029027,15]
[386493474,1758319868986,-450.0,0.00029041,5]
[386493475,1758319868995,-166.35424728,0.00029041,120]
[386493476,1758319869005,-500.0,0.00029047,2]
[386493477,1758319869014,-168.0,0.0002906,2]
[386493478,1758319869035,-200.0,0.00029076,120]
[386493479,1758319869045,-2368.89283335,0.00029095,2]
[386493480,1758319869055,-1160.0,0.00029095,2]
[386493481,1758319869086,-1055.04,0.0002912,30]
[386493482,1758319869108,-728.97,0.00029127,15]
[386493483,1758319869129,-800.0,0.00029143,2]
[386493484,1758319869150,-800.0,0.00029178,2]
[386493485,1758319869172,-800.0,0.00029181,2]
[386493486,1758319869195,-728.97,0.00029227,15]
[386493487,1758319869217,-168.0,0.00029243,2]
[386493488,1758319869232,-1055.04,0.0002926,30]
[386493489,1758319869250,-500.0,0.00029262,2]
[386493490,1758319869270,-800.0,0.00029289,2]
[386493491,1758319869292,-166.40936905,0.00029298,2]
[386493492,1758319869305,-151.0,0.000293,120]
[386493493,1758319869326,-522.6179731,0.000293,60]
[386493494,1758319869340,-204.831726,0.000293,2]
[386493495,1758319869358,-500.0,0.00029301,2]
[386493496,1758319869373,-500.0,0.00029317,2]
[386493497,1758319869391,-728.97,0.00029327,15]
[386493498,1758319869408,-160.0,0.00029342,5]
[386493499,1758319869423,-500.0,0.00029344,5]
[386493500,1758319869438,-3000.0,0.00029368,60]
[386493501,1758319869453,-3000.0,0.00029368,60]
[386493502,1758319869468,-151.53090644,0.00029373,5]
[386493503,1758319869482,-1313.77,0.00029373,60]
[386493504,1758319869497,-3000.0,0.00029375,60]
[386493505,1758319869511,-3008.0,0.00029375,60]
[386493506,1758319869526,-2000.0,0.00029375,60]
[386493507,1758319869540,-2566.14,0.00029375,60]
[386493508,1758319869550,-1292.0,0.00029382,2]
[386493509,1758319869561,-500.0,0.00029392,2]
[386493510,1758319869573,-1235976.67038641,0.00029398,20]
[386493511,1758319869583,-373.12926733,0.00029398,30]
[386493512,1758319869592,-328.39124668,0.00029398,30]
[386493513,1758319869601,-1201.90771351,0.00029398,30]
[386493514,1758319869610,-1337.52304768,0.00029398,32]
[386493515,1758319869619,-2300.89350048,0.00029398,30]
[386493516,1758319869629,-2962.53362779,0.00029398,2]
[386493517,1758319869637,-247.28051796,0.00029398,30]
[386493518,1758319869646,-677.66246933,0.00029398,30]
[386493519,1758319869656,-479.40389243,0.00029398,30]
[386493520,1758319869665,-515.79412234,0.00029398,30]
[386493521,1758319869675,-179.50957334,0.00029398,30]
[386493522,1758319869684,-166.56329045,0.00029398,2]
[386493523,1758319869694,-294077.57670206,0.00029398,20]
[386493524,1758319869729,-690.52030338,0.00023032,2]
[386493525,1758319870234,-200.0,0.00021105,10]
[386493526,1758319870244,-200.0,0.00021105,10]
[386493527,1758319870253,-200.0,0.00021105,10]
[386493528,1758319870263,-200.0,0.00021105,10]
[386493529,1758319870272,-200.0,0.00021105,10]
[386493530,1758319870285,-200.0,0.00021105,10]
[386493531,1758319870294,-200.0,0.00021105,10]
[386493532,1758319870303,-200.0,0.00021105,10]
[386493533,1758319870312,-200.0,0.00021105,10]
[386493534,1758319870321,-200.0,0.00021105,10]
[386493535,1758319870330,-200.0,0.00021105,10]
[386493536,1758319870339,-480.0,0.00021108,2]
[386493537,1758319870348,-480.0,0.0002111,2]
[386493538,1758319870357,-480.0,0.0002111,2]
[386493539,1758319870366,-480.0,0.0002111,2]
[386493540,1758319870375,-480.0,0.00021113,2]
[386493541,1758319870385,-480.0,0.00021382,2]
[386493542,1758319870394,-480.0,0.00021384,2]
[386493543,1758319870403,-480.0,0.00021384,2]
[386493544,1758319870412,-480.0,0.00021656,2]
[386493545,1758319870422,-480.0,0.00021658,2]
[386493546,1758319870431,-193.21,0.0002193,2]
[386493547,1758319870441,-2732.47969662,0.00023032,2]
[386493548,1758319870449,-3423.0,0.00023306,2]
[386493549,1758319870459,-3423.0,0.0002358,2]
[386493550,1758319870468,-3423.0,0.00023854,2]
[386493551,1758319870477,-3423.0,0.00024128,2]
[386493552,1758319870487,-3423.0,0.00024402,2]
[386493553,1758319870496,-3423.0,0.00024676,2]
[386493554,1758319870505,-151.0,0.00024692,2]
[386493555,1758319870515,-151.0,0.00024692,2]
[386493556,1758319870523,-3423.0,0.0002495,2]
[386493557,1758319870531,-3423.0,0.00025224,2]
[386493558,1758319870540,-151.0,0.0002524,2]
[386493559,1758319870549,-3423.0,0.00025498,2]
[386493560,1758319870559,-240.93027155,0.00025514,2]
[386493561,1758319870568,-3423.0,0.00025772,2]
[386493562,1758319870577,-3423.0,0.00026046,2]
[386493563,1758319870586,-3423.0,0.0002632,2]
[386493564,1758319870596,-3423.0,0.00026594,2]
[386493565,1758319870605,-123940.94423569,0.00029398,20]
[386493566,1758319870655,-3624.1581881,0.00029398,20]
[386493567,1758319871875,290.17387763,0.00021,2]
[386493568,1758319872288,6187.17177896,0.00021005,2]
[386493569,1758319872312,10000.01,0.00021005,2]
[386493570,1758319872335,10000.01,0.00021005,2]
[386493571,1758319872359,10000.01,0.00021005,2]
[386493572,1758319872382,10000.01,0.00021005,2]
[386493573,1758319872405,5377.03475782,0.00021005,2]
[386493574,1758319872499,248.81423401,0.00021,2]
[386493577,1758319950853,154.0,0.00024,120]
[386493578,1758319952526,154.0,0.000259,120]
[386493623,1758320113324,315.71102206,0.00021002,2]
[386493624,1758320206271,-242.68719904,0.00021101,2]
[386493625,1758320206300,-179.68600137,0.00021101,2]
[386493626,1758320206328,-201.72561784,0.00021101,2]
[386493627,1758320206357,-500.0,0.00021101,2]
[386493628,1758320206385,-500.0,0.00021101,2]
[386493629,1758320206414,-500.0,0.00021101,2]
[386493630,1758320206445,-500.0,0.00021101,2]
[386493631,1758320206472,-623.85467772,0.00021101,2]
[386493632,1758320206502,-561.57091802,0.00021101,2]
[386493633,1758320206532,-500.0,0.00021101,2]
[386493634,1758320206563,-500.0,0.00021101,2]
[386493635,1758320206710,-500.0,0.00021101,2]
[386493636,1758320206740,-415.46781608,0.00021101,2]
[386493637,1758320206770,-561.57091802,0.00021101,2]
[386493638,1758320206798,-500.0,0.00021101,2]
[386493639,1758320206831,-500.0,0.00021101,2]
[386493640,1758320206859,-500.0,0.00021101,2]
[386493641,1758320206889,-561.57091802,0.00021101,2]
[386493642,1758320206920,-500.0,0.00021101,2]
[386493643,1758320206948,-500.0,0.00021101,2]
[386493644,1758320206976,-422.79069576,0.00021101,2]
[386493645,1758320207102,-77.20930424,0.00021101,2]
[386493646,1758320207132,-561.57091802,0.00021101,2]
[386493647,1758320207164,-500.0,0.00021101,2]
[386493648,1758320207192,-500.0,0.00021101,2]
[386493649,1758320207220,-500.0,0.00021101,2]
[386493650,1758320207250,-500.0,0.00021101,2]
[386493651,1758320207279,-561.57091802,0.00021101,2]
[386493652,1758320207308,-314.72039681,0.00021101,2]
[386493653,1758320207338,-500.0,0.00021101,2]
[386493654,1758320207375,-500.0,0.00021101,2]
[386493655,1758320207405,-408.2960078,0.00021101,2]
[386493656,1758320207506,-153.27491022,0.00021101,2]
[386493657,1758320207540,-500.0,0.00021101,2]
[386493658,1758320207575,-500.0,0.00021101,2]
[386493659,1758320207606,-561.57091802,0.00021101,2]
[386493660,1758320207635,-513.53327806,0.00021101,2]
[386493661,1758320207670,-500.0,0.00021101,2]
[386493662,1758320207705,-561.57091802,0.00021101,2]
[386493663,1758320207735,-500.0,0.00021101,2]
[386493664,1758320207768,-500.0,0.00021101,2]
[386493665,1758320207798,-500.0,0.00021101,2]
[386493666,1758320207948,-561.57091802,0.00021101,2]
[386493667,1758320207977,-500.0,0.00021101,2]
[386493668,1758320208009,-500.0,0.00021101,2]
[386493669,1758320208040,-561.57091802,0.00021101,2]
[386493670,1758320208070,-500.0,0.00021101,2]
[386493671,1758320208101,-500.0,0.00021101,2]
[386493672,1758320208132,-561.57091802,0.00021101,2]
[386493673,1758320208161,-500.0,0.00021101,2]
[386493674,1758320208193,-500.0,0.00021101,2]
[386493675,1758320208224,-130.58449188,0.00021101,2]
[386493676,1758320208493,-369.41550812,0.00021101,2]
[386493677,1758320208526,-561.57091802,0.00021101,2]
[386493678,1758320208559,-500.0,0.00021101,2]
[386493679,1758320208594,-500.0,0.00021101,2]
[386493680,1758320208626,-561.57091802,0.00021101,2]
[386493681,1758320208660,-500.0,0.00021101,2]
[386493682,1758320208692,-500.0,0.00021101,2]
[386493683,1758320208724,-561.57091802,0.00021101,2]
[386493684,1758320208754,-500.0,0.00021101,2]
[386493685,1758320208785,-391.75347564,0.00021101,2]
[386493686,1758320214094,-108.24652436,0.00021101,2]
[386493687,1758320214123,-561.57091802,0.00021101,2]
[386493688,1758320214152,-500.0,0.00021101,2]
[386493689,1758320214182,-500.0,0.00021101,2]
[386493690,1758320214212,-561.57091802,0.00021101,2]
[386493691,1758320214241,-500.0,0.00021101,2]
[386493692,1758320214273,-500.0,0.00021101,2]
[386493693,1758320214307,-561.57091802,0.00021101,2]
[386493694,1758320214336,-500.0,0.00021101,2]
[386493695,1758320214366,-500.0,0.00021101,2]
[386493696,1758320214512,-500.0,0.00021101,2]
[386493697,1758320214543,-561.57091802,0.00021101,2]
[386493698,1758320214579,-500.0,0.00021101,2]
[386493699,1758320214610,-561.57091802,0.00021101,2]
[386493700,1758320214642,-500.0,0.00021101,2]
[386493701,1758320214675,-289.07292959,0.00021101,2]
[386493702,1758320214705,-561.57091802,0.00021101,2]
[386493703,1758320214736,-561.57091802,0.00021101,2]
[386493704,1758320214767,-500.0,0.00021101,2]
[386493705,1758320214797,-367.72587864,0.00021101,2]
[386493706,1758320214921,-193.84503938,0.00021101,2]
[386493707,1758320214951,-500.0,0.00021101,2]
[386493708,1758320214980,-500.0,0.00021101,2]
[386493709,1758320215011,-500.0,0.00021101,2]
[386493710,1758320215042,-561.57091802,0.00021101,2]
[386493711,1758320215071,-561.57091802,0.00021101,2]
[386493712,1758320215103,-500.0,0.00021101,2]
[386493713,1758320215133,-561.57091802,0.00021101,2]
[386493714,1758320215162,-500.0,0.00021101,2]
[386493715,1758320215192,-561.57091802,0.00021101,2]
[386493717,1758320222543,300.0,0.000211,2]
[386493720,1758320234067,-500.0,0.00021101,2]
[386493721,1758320234100,-561.57091802,0.00021101,2]
[386493722,1758320234130,-500.0,0.00021101,2]
[386493723,1758320234161,-561.57091802,0.00021101,2]
[386493724,1758320234193,-500.0,0.00021101,2]
[386493725,1758320234225,-561.57091802,0.00021101,2]
[386493726,1758320234257,-500.0,0.00021101,2]
[386493727,1758320234288,-561.57091802,0.00021101,2]
[386493728,1758320234320,-500.0,0.00021101,2]
[386493729,1758320234643,-561.57091802,0.00021101,2]
[386493730,1758320234677,-500.0,0.00021101,2]
[386493731,1758320234708,-561.57091802,0.00021101,2]
[386493732,1758320234741,-500.0,0.00021101,2]
[386493733,1758320234773,-561.57091802,0.00021101,2]
[386493734,1758320234804,-500.0,0.00021101,2]
[386493735,1758320234835,-561.57091802,0.00021101,2]
[386493736,1758320234870,-561.57091802,0.00021101,2]
[386493737,1758320234901,-561.57091802,0.00021101,2]
[386493738,1758320235066,-561.57091802,0.00021101,2]
[386493739,1758320235098,-500.0,0.00021101,2]
[386493740,1758320235130,-561.57091802,0.00021101,2]
[386493741,1758320235161,-500.0,0.00021101,2]
[386493742,1758320235192,-561.57091802,0.00021101,2]
[386493743,1758320235223,-561.57091802,0.00021101,2]
[386493744,1758320235255,-500.0,0.00021101,2]
[386493745,1758320235290,-500.0,0.00021101,2]
[386493746,1758320235321,-561.57091802,0.00021101,2]
[386493747,1758320235367,-561.57091802,0.00021101,2]
[386493748,1758320235398,-500.0,0.00021101,2]
[386493749,1758320235429,-561.57091802,0.00021101,2]
[386493750,1758320235461,-561.57091802,0.00021101,2]
[386493751,1758320235492,-561.57091802,0.00021101,2]
[386493752,1758320235523,-561.57091802,0.00021101,2]
[386493753,1758320235554,-561.57091802,0.00021101,2]
[386493754,1758320235588,-561.57091802,0.00021101,2]
[386493755,1758320235622,-561.57091802,0.00021101,2]
[386493756,1758320236406,801.0,0.000211,2]
[386493757,1758320260975,480.0,0.000211,2]
[386493766,1758320282199,300.0,0.000211,2]
[386493769,1758320290374,212.840238,0.00020103,2]
[386493776,1758320342269,300.0,0.000211,2]
[386493778,1758320360193,220.75825801,0.000211,2]
[386493779,1758320360221,182.44163428,0.000211,2]
[386493780,1758320361031,201.63559965,0.000211,2]
[386493781,1758320361058,500.0,0.000211,2]
[386493782,1758320361089,500.0,0.000211,2]
[386493783,1758320361121,500.0,0.000211,2]
[386493784,1758320361151,500.0,0.000211,2]
[386493785,1758320361180,500.0,0.000211,2]
[386493786,1758320361212,500.0,0.000211,2]
[386493787,1758320361249,390.39258645,0.000211,2]
[386493788,1758320361284,500.0,0.000211,2]
[386493789,1758320361316,500.0,0.000211,2]
[386493790,1758320361351,500.0,0.000211,2]
[386493791,1758320361387,500.0,0.000211,2]
[386493792,1758320361418,500.0,0.000211,2]
[386493793,1758320361446,500.0,0.000211,2]
[386493794,1758320361485,500.0,0.000211,2]
[386493795,1758320361523,500.0,0.000211,2]
[386493796,1758320361554,500.0,0.000211,2]
[386493797,1758320361583,211.94168361,0.000211,2]
[386493798,1758320361608,288.05831639,0.000211,2]
[386493799,1758320361659,500.0,0.000211,2]
[386493800,1758320361689,500.0,0.000211,2]
[386493801,1758320361723,500.0,0.000211,2]
[386493802,1758320361752,500.0,0.000211,2]
[386493803,1758320361783,500.0,0.000211,2]
[386493804,1758320361813,500.0,0.000211,2]
[386493805,1758320361842,500.0,0.000211,2]
[386493806,1758320361876,500.0,0.000211,2]
[386493807,1758320361901,500.0,0.000211,2]
[386493808,1758320361928,500.0,0.000211,2]
[386493809,1758320362112,500.0,0.000211,2]
[386493810,1758320362147,500.0,0.000211,2]
[386493811,1758320362181,500.0,0.000211,2]
[386493812,1758320362210,500.0,0.000211,2]
[386493813,1758320362250,500.0,0.000211,2]
[386493814,1758320362283,500.0,0.000211,2]
[386493815,1758320362315,500.0,0.000211,2]
[386493816,1758320362366,500.0,0.000211,2]
[386493817,1758320362477,500.0,0.000211,2]
[386493818,1758320362548,211.95168361,0.000211,2]
[386493819,1758320362574,288.04831639,0.000211,2]
[386493820,1758320362602,500.0,0.000211,2]
[386493821,1758320362652,500.0,0.000211,2]
[386493822,1758320377102,276.24714432,0.00021001,2]
[386493823,1758320382559,500.0,0.000211,2]
[386493824,1758320382597,500.0,0.000211,2]
[386493825,1758320382639,500.0,0.000211,2]
[386493826,1758320382677,500.0,0.000211,2]
[386493827,1758320382734,500.0,0.000211,2]
[386493828,1758320382772,500.0,0.000211,2]
[386493829,1758320382810,500.0,0.000211,2]
[386493830,1758320382856,498.49462327,0.000211,2]
[386493831,1758320382896,500.0,0.000211,2]
[386493832,1758320382938,500.0,0.000211,2]
[386493833,1758320383002,500.0,0.000211,2]
[386493834,1758320383038,500.0,0.000211,2]
[386493835,1758320383090,500.0,0.000211,2]
[386493836,1758320383127,500.0,0.000211,2]
[386493838,1758320401216,300.0,0.000211,2]
[386493839,1758320402002,300.0,0.000211,2]
[386493840,1758320402046,300.0,0.000211,2]
[386493841,1758320402223,235.0,0.000211,2]
[386493842,1758320402833,300.0,0.000211,2]
[386493843,1758320409197,1200.0,0.000211,2]
[386493844,1758320414235,480.0,0.000211,2]
[386493845,1758320416038,600.65614004,0.000211,2]
[386493846,1758320417245,480.0,0.000211,2]
[386493847,1758320420240,480.0,0.000211,2]
[386493848,1758320435042,480.0,0.000211,2]
[386493849,1758320443583,480.0,0.000211,2]
[386493850,1758320451247,480.0,0.000211,2]
[386493851,1758320457666,480.0,0.000211,2]
[386493852,1758320462549,300.0,0.000211,2]
[386493853,1758320467342,480.0,0.000211,2]
[386493854,1758320468415,480.0,0.000211,2]
[386493855,1758320477527,500.0,0.000211,2]
[386493856,1758320477563,500.0,0.000211,2]
[386493857,1758320477602,500.0,0.000211,2]
[386493858,1758320477640,500.0,0.000211,2]
[386493859,1758320477685,500.0,0.000211,2]
[386493860,1758320477723,500.0,0.000211,2]
[386493861,1758320477765,500.0,0.000211,2]
[386493862,1758320477800,500.0,0.000211,2]
[386493863,1758320477841,500.0,0.000211,2]
[386493864,1758320477886,500.0,0.000211,2]
[386493865,1758320477923,500.0,0.000211,2]
[386493866,1758320477965,500.0,0.000211,2]
[386493867,1758320478019,574.02511217,0.000211,2]
[386493868,1758320478061,500.0,0.000211,2]
[386493869,1758320478103,375.0,0.000211,2]
[386493870,1758320478142,550.0,0.000211,2]
[386493871,1758320478179,500.0,0.000211,2]
[386493872,1758320478220,500.0,0.000211,2]
[386493873,1758320478388,500.0,0.000211,2]
[386493874,1758320478430,544.14501332,0.000211,2]
[386493875,1758320478468,500.0,0.000211,2]
[386493876,1758320478506,500.0,0.000211,2]
[386493877,1758320478561,500.0,0.000211,2]
[386493878,1758320478605,500.0,0.000211,2]
[386493879,1758320478648,500.0,0.000211,2]
[386493880,1758320478694,500.0,0.000211,2]
[386493881,1758320478736,500.0,0.000211,2]
[386493882,1758320478777,500.0,0.000211,2]
[386493883,1758320478818,500.0,0.000211,2]
[386493884,1758320478858,500.0,0.000211,2]
[386493885,1758320479509,500.0,0.000211,2]
[386493886,1758320479558,500.0,0.000211,2]
[386493887,1758320479707,480.0,0.000211,2]
[386493888,1758320486394,775.55,0.000211,2]
[386493889,1758320489962,326.79513449,0.000211,2]
[386493890,1758320490000,500.0,0.000211,2]